Department Family,Entity,Invoice Date,Consolidated Expense Type,Expense area,Supplier,Purchase Invoice Number,"Invoice Value
�",Description
Department of Health,HSCIC,05/02/2015,Health Surveys,Population Health,MARKET & OPINION RESEARCH INTERNATIONAL LTD,15000174,"1,601,615.00",Health Surveys
Department of Health,HSCIC,25/02/2015,Computer Maintenance,General Practice Extraction Service,CSC COMPUTER SCIENCES LTD,5201401446,"1,048,721.48",Computer Maintenance
Department of Health,HSCIC,20/03/2014,Health Surveys,Population Health,NATIONAL CENTRE FOR SOCIAL RESEARCH,51131,"968,311.20",Health Surveys
Department of Health,HSCIC,04/12/2014,Health Surveys,Population Health,NATIONAL CENTRE FOR SOCIAL RESEARCH,51656,"863,821.20",Health Surveys
Department of Health,HSCIC,27/06/2014,Computer Software Additions,Capital Expenditure,ATOS IT SERVICES UK LTD,PP5584155153/5584157725/5584161446,"840,000.00",Computer Software Additions
Department of Health,HSCIC,18/11/2014,Computer Software/License,IT Services,SOFTCAT LTD,INV01046505,"808,359.18",Computer Software/License
Department of Health,HSCIC,11/06/2014,Health Surveys,Population Health,NATIONAL CENTRE FOR SOCIAL RESEARCH,51311,"714,960.00",Health Surveys
Department of Health,HSCIC,11/09/2014,Health Surveys,Population Health,NATIONAL CENTRE FOR SOCIAL RESEARCH,51469,"714,960.00",Health Surveys
Department of Health,HSCIC,06/05/2014,Computer Software Additions,Capital Expenditure,ATOS IT SERVICES UK LTD,5584157656,"660,000.00",Computer Software Additions
Department of Health,HSCIC,17/10/2014,Computer Maintenance,IT Services,PROBRAND LTD,OPI488656,"629,883.25",Computer Maintenance
Department of Health,HSCIC,24/07/2014,Computer Maintenance,General Practice Extraction Service,CSC COMPUTER SCIENCE,5201376582,"623,119.30",Computer Maintenance
Department of Health,HSCIC,31/03/2015,Fixtures & Fittings Additions,Capital Expenditure,MWB BUSINESS EXCHANGE CENTRES LTD,PPMWBEX2000044,"596,400.00",Fixtures & Fittings Additions
Department of Health,HSCIC,09/10/2014,Health Surveys,Population Health,NATIONAL CENTRE FOR SOCIAL RESEARCH,51545,"580,000.00",Health Surveys
Department of Health,HSCIC,22/01/2015,Health Surveys,"Surveys, lifestyle & public health",NATIONAL CENTRE FOR SOCIAL RESEARCH,51736,"580,000.00",Health Surveys
Department of Health,HSCIC,14/08/2014,Data Centre Costs,IT Services,HM LAND REGISTRY,1128744,"558,000.00",Data Centre Costs
Department of Health,HSCIC,30/04/2014,Software Licences,Capital Expenditure,INSIGHT DIRECT (UK) LTD,1821382,"548,275.20",Software Licences
Department of Health,HSCIC,19/03/2014,IT Additions,Capital Expenditure,PROBRAND LTD,OPI466027,"532,440.00",IT Additions
Department of Health,HSCIC,19/11/2014,Subscription,Info Gov Policy,INTERNATIONAL HEALTH TERMINOLOGY STANDARDS DEVELOPMENT ORGANISATION,2015025,"516,726.92",Subscription
Department of Health,HSCIC,31/03/2014,Computer Software Additions,Capital Expenditure,SOFTCAT LTD,INV00924560,"473,922.60",Computer Software Additions
Department of Health,HSCIC,10/07/2014,Data Centre Costs,IT Services,PROBRAND LTD,OPI478732,"472,912.14",Data Centre Costs
Department of Health,HSCIC,06/05/2014,Computer Software/License,Technical Architecture,GS1 UK,14006243,"465,948.00",Computer Software/License
Department of Health,HSCIC,31/03/2014,Computer Software/License,IT Operations,SOFTCAT LTD,INV00924625,"457,800.00",Computer Software/License
Department of Health,HSCIC,20/10/2014,IT Additions,Capital Expenditure,PROBRAND LTD,OPI488807,"455,760.00",IT Additions
Department of Health,HSCIC,15/08/2014,Computer Maintenance,General Practice Extraction Service,CSC COMPUTER SCIENCE,5201378749,"453,405.28",Computer Maintenance
Department of Health,HSCIC,21/10/2014,Contract - Other External,CHRIS Service Management,IDENTITY & PASSPORT SERVICE,1121930,"448,417.28",Contract - Other External
Department of Health,HSCIC,23/12/2014,Health Surveys,Population Health,NATIONAL CENTRE FOR SOCIAL RESEARCH,51687,"445,464.00",Health Surveys
Department of Health,HSCIC,24/03/2015,Legal / Professional Fees,HSCN,PRICEWATERHOUSE COOPERS,1354329661,"424,525.50",Legal / Professional Fees
Department of Health,HSCIC,15/04/2014,Computer Software/License,Intersystems MSM,SOFTCAT LTD,INV00932054,"411,631.44",Computer Software/License
Department of Health,HSCIC,19/11/2014,IT Additions,Capital Expenditure,PROBRAND LTD,OPI491712,"398,532.95",IT Additions
Department of Health,HSCIC,07/08/2014,Data Services,General Practice Extraction Service,EGTON MEDICAL INFORMATION SYSTEMS LTD,IN8260921,"355,052.04",Data Services
Department of Health,HSCIC,10/06/2014,Legal / Professional Fees,Transparency & Information Assurance Programme,PRICEWATERHOUSECOOPERS LLP,1354179748,"344,630.76",Legal / Professional Fees
Department of Health,HSCIC,23/02/2015,Computer Hardware,IT Services,CSA WAVERLEY LTD,IN660550,"331,941.72",Computer Hardware
Department of Health,HSCIC,26/11/2014,Data Services,General Practice Extraction Service,EMIS (EGTON MEDICAL INFORMATION SYSTEMS LTD),IN8553011,"321,581.64",Data Services
Department of Health,HSCIC,30/06/2014,Computer Software/License,Hosting & Infrastructure,ORACLE CORPORATION UK LTD,1449565,"321,267.63",Computer Software/License
Department of Health,HSCIC,23/06/2014,IT Additions,Capital Expenditure,SOFTCAT LTD,INV00966052,"310,812.80",IT Additions
Department of Health,HSCIC,15/05/2014,Data Services,General Practice Extraction Service,EGTON MEDICAL INFORMATION SYSTEMS LTD,IN8006911,"302,992.80",Data Services
Department of Health,HSCIC,24/11/2014,IT Additions,Capital Expenditure,COMPUTACENTER UK LTD,3880335817,"301,127.04",IT Additions
Department of Health,HSCIC,31/08/2014,Legal / Professional Fees,Southern Review Commercial ,DLA PIPER UK LLP,54760167,"297,822.48",Legal / Professional Fees
Department of Health,HSCIC,19/01/2015,Computer Hardware,IT Services,PROBRAND LTD,OPI497093,"286,445.13",Computer Hardware
Department of Health,HSCIC,04/03/2015,Legal / Professional Fees,HSCN,DELOITTE LLP,2410087934,"283,277.35",Legal / Professional Fees
Department of Health,HSCIC,30/01/2015,Data Services,General Practice Extraction Service,EMIS (EGTON MEDICAL INFORMATION SYSTEMS LTD),IN8692311,"281,930.70",Data Services
Department of Health,HSCIC,25/02/2015,Data Services,General Practice Extraction Service,EMIS (EGTON MEDICAL INFORMATION SYSTEMS LTD),IN8754411,"281,930.70",Data Services
Department of Health,HSCIC,17/03/2015,Computer Software/License,IT Services,HEALTH DATA INTELLIGENCE LTD,29,"276,646.92",Computer Software/License
Department of Health,HSCIC,01/01/2015,Season Tickets,Various,WEST YORKSHIRE COMBINED AUTHORITY,PPCS4222,"255,651.95",Season Tickets
Department of Health,HSCIC,02/06/2014,Rent,Estates & Facilities,PETIT PAPILLON MANAGEMENT LTD,9600,"248,687.77",Rent
Department of Health,HSCIC,30/06/2014,Pension Capitalisation,Corporate,NHS PENSIONS AGENCY,1693161,"247,894.29",Pension Capitalisation
Department of Health,HSCIC,03/03/2015,Workpackage,Operations and Technical Services,XML SOLUTIONS LTD,IC1003,"247,636.50",Workpackage
Department of Health,HSCIC,04/09/2014,Rent,Estates & Facilities,PETIT PAPILLON MANAGEMENT LTD,9880,"246,910.65",Rent
Department of Health,HSCIC,01/12/2014,Rent,Estates & Facilities,PETIT PAPILLON MANAGEMENT LTD,10000,"246,910.65",Rent
Department of Health,HSCIC,15/09/2014,Software Licences,Capital Expenditure,SOFTCAT LTD,INV01010151,"245,070.91",Software Licences
Department of Health,HSCIC,02/03/2015,Rates,Estates & Facilities,LEEDS CITY COUNCIL,9.00815E+20,"242,802.50",Rates
Department of Health,HSCIC,18/03/2015,Data Services,General Practice Extraction Service,ATOS IT SERVICES UK LTD,5584180834,"240,000.00",Data Services
Department of Health,HSCIC,31/03/2014,Computer Software/License,HSCDS - NHS Choices Managed Services,SPECIALIST COMPUTER CENTRES PLC,OPL830190,"238,556.06",Computer Software/License
Department of Health,HSCIC,24/04/2014,Data Services,General Practice Extraction Service,IN PRACTICE SYSTEMS LTD,404921,"230,091.60",Data Services
Department of Health,HSCIC,20/10/2014,Software Licences,Capital Expenditure,TRUSTMARQUE SOLUTIONS LTD,2219514,"224,800.13",Software Licences
Department of Health,HSCIC,25/04/2014,Rent,Estates & Facilities,MWB BUSINESS EXCHANGE CENTRES LTD,235538,"224,337.84",Rent
Department of Health,HSCIC,25/04/2014,Rent,Estates & Facilities,MWB BUSINESS EXCHANGE CENTRES LTD,235541,"224,337.84",Rent
Department of Health,HSCIC,06/05/2014,Rent,Estates & Facilities,MWB BUSINESS EXCHANGE CENTRES LTD,235546,"224,337.84",Rent
Department of Health,HSCIC,06/05/2014,Rent,Estates & Facilities,MWB BUSINESS EXCHANGE CENTRES LTD,235550,"224,337.84",Rent
Department of Health,HSCIC,23/05/2014,Rent,Estates & Facilities,MWB BUSINESS EXCHANGE CENTRES LTD,235552,"224,337.84",Rent
Department of Health,HSCIC,25/06/2014,Rent,Estates & Facilities,MWB BUSINESS EXCHANGE CENTRES LTD,235555,"224,337.84",Rent
Department of Health,HSCIC,25/07/2014,Rent,Estates & Facilities,MWB BUSINESS EXCHANGE CENTRES LTD,235558,"224,337.84",Rent
Department of Health,HSCIC,25/08/2014,Rent,Estates & Facilities,MWB BUSINESS EXCHANGE CENTRES LTD,235561,"224,337.84",Rent
Department of Health,HSCIC,25/09/2014,Rent,Estates & Facilities,MWB BUSINESS EXCHANGE CENTRES LTD,235564,"224,337.84",Rent
Department of Health,HSCIC,24/10/2014,Rent,Estates & Facilities,MWB BUSINESS EXCHANGE CENTRES LTD,235567,"224,337.84",Rent
Department of Health,HSCIC,26/09/2014,Assets Under Construction,Capital Expenditure,ATOS IT SERVICES UK LTD,5584168016,"220,800.00",Assets Under Construction
Department of Health,HSCIC,25/02/2015,Travel,Various,REDFERN TRAVEL LTD,PP098935,"220,480.17",Travel
Department of Health,HSCIC,03/06/2014,Health Surveys,Population Health,NATIONAL CENTRE FOR SOCIAL RESEARCH,51305,"220,000.00",Health Surveys
Department of Health,HSCIC,30/01/2015,Computer Hardware,IT Services,PROBRAND LTD,OPI498857,"217,446.61",Computer Hardware
Department of Health,HSCIC,31/10/2014,IT Additions,Capital Expenditure,PROBRAND LTD,OPI490135,"216,258.64",IT Additions
Department of Health,HSCIC,19/11/2014,Computer Maintenance,Solution Assurance,CSC COMPUTER SCIENCES LTD,5201389495,"215,893.40",Computer Maintenance
Department of Health,HSCIC,30/09/2014,Travel,Estates & Facilities,REDFERN TRAVEL LTD,90144,"206,551.29",Travel
Department of Health,HSCIC,09/03/2015,Rent,Estates & Facilities,PETIT PAPILLON MANAGEMENT LTD,10363,"205,758.88",Rent
Department of Health,HSCIC,19/12/2014,IT Additions,Capital Expenditure,PROBRAND LTD,OPI495078,"203,949.41",IT Additions
Department of Health,HSCIC,07/01/2015,Computer Software/License,Productivity & Efficiency,INSIGHT DIRECT (UK) LTD,2176185,"203,621.15",Computer Software/License
Department of Health,HSCIC,31/10/2014,Travel,Estates & Facilities,REDFERN TRAVEL LTD,92403,"201,235.67",Travel
Department of Health,HSCIC,20/03/2015,Data Services,General Practice Extraction Service,ATOS IT SERVICES UK LTD,5584181101,"200,000.00",Data Services
Department of Health,HSCIC,22/01/2015,IT Additions,Capital Expenditure,KELWAY LTD,PSINV01321035,"199,210.00",IT Additions
Department of Health,HSCIC,24/10/2014,Rent,Estates & Facilities,MWB BUSINESS EXCHANGE CENTRES LTD,2354786,"198,082.75",Rent
Department of Health,HSCIC,01/03/2015,Travel,Various,REDFERN TRAVEL LTD,100841,"197,480.12",Travel
Department of Health,HSCIC,29/10/2014,Assets Under Construction,Capital Expenditure,ATOS IT SERVICES UK LTD,5584170052,"196,726.28",Assets Under Construction
Department of Health,HSCIC,27/10/2014,Computer Software/License,IT Services,INSIGHT DIRECT (UK) LTD,2079467,"195,772.29",Computer Software/License
Department of Health,HSCIC,25/04/2014,Rent,Estates & Facilities,MWB BUSINESS EXCHANGE CENTRES LTD,2354444,"193,822.75",Rent
Department of Health,HSCIC,06/05/2014,Rent,Estates & Facilities,MWB BUSINESS EXCHANGE CENTRES LTD,2354489,"193,822.75",Rent
Department of Health,HSCIC,23/05/2014,Rent,Estates & Facilities,MWB BUSINESS EXCHANGE CENTRES LTD,2354503,"193,822.75",Rent
Department of Health,HSCIC,25/06/2014,Rent,Estates & Facilities,MWB BUSINESS EXCHANGE CENTRES LTD,2354555,"193,822.75",Rent
Department of Health,HSCIC,25/08/2014,Rent,Estates & Facilities,MWB BUSINESS EXCHANGE CENTRES LTD,2354680,"193,822.75",Rent
Department of Health,HSCIC,25/09/2014,Rent,HSCDS - NHS Choices Managed Services,MWB BUSINESS EXCHANGE CENTRES LTD,2354726,"193,822.75",Rent
Department of Health,HSCIC,30/01/2015,Computer Software/License,IT Services,INSIGHT DIRECT (UK) LTD,2215366,"190,700.00",Computer Software/License
Department of Health,HSCIC,20/08/2014,Contract - Other External,CHRIS Service Management,IDENTITY & PASSPORT SERVICE,1120949,"190,555.92",Contract - Other External
Department of Health,HSCIC,20/08/2014,Contract - Other External,CHRIS Service Management,IDENTITY & PASSPORT SERVICE,1120950,"190,555.92",Contract - Other External
Department of Health,HSCIC,19/11/2014,Contract - Other External,CHRIS Service Management,IDENTITY & PASSPORT SERVICE,1122287,"190,555.92",Contract - Other External
Department of Health,HSCIC,30/09/2014,IT Additions,Capital Expenditure,PROBRAND LTD,OPI486817,"190,448.83",IT Additions
Department of Health,HSCIC,30/07/2014,Travel,Estates & Facilities,REDFERN TRAVEL LTD,PP083269,"190,448.51",Travel
Department of Health,HSCIC,25/02/2015,Legal / Professional Fees,SPINE 2 Tech Office,NHS ENGLAND,7000013650,"190,000.00",Legal / Professional Fees
Department of Health,HSCIC,21/11/2014,Rent,Estates & Facilities,MWB BUSINESS EXCHANGE CENTRES LTD,235570,"186,948.20",Rent
Department of Health,HSCIC,23/12/2014,Rent,Estates & Facilities,MWB BUSINESS EXCHANGE CENTRES LTD,235572,"186,948.20",Rent
Department of Health,HSCIC,23/01/2015,Rent,Estates & Facilities,MWB BUSINESS EXCHANGE CENTRES LTD,235574,"186,948.20",Rent
Department of Health,HSCIC,25/02/2015,Rent,Estates & Facilities,MWB BUSINESS EXCHANGE CENTRES LTD,235576,"186,948.20",Rent
Department of Health,HSCIC,30/12/2014,Travel,Estates & Facilities,REDFERN TRAVEL LTD,PP094685,"186,837.48",Travel
Department of Health,HSCIC,30/06/2014,Pension Capitalisation,Corporate,NHS PENSIONS AGENCY,1693164,"182,445.27",Pension Capitalisation
Department of Health,HSCIC,12/03/2015,Computer Software/License,IT Services,TRUSTMARQUE SOLUTIONS LTD,XMLSINV2226677,"175,515.14",Computer Software/License
Department of Health,HSCIC,24/02/2015,Computer Hardware,IT Services,PROBRAND LTD,OPI501107,"175,271.81",Computer Hardware
Department of Health,HSCIC,31/03/2014,Travel,Estates & Facilities,REDFERN TRAVEL LTD,76455,"170,533.98",Travel
Department of Health,HSCIC,21/03/2014,Rent,Estates & Facilities,HOME OFFICE,1118920,"168,297.00",Rent
Department of Health,HSCIC,21/11/2014,Rent,Estates & Facilities,REGUS (UK) LTD,2354839,"167,056.96",Rent
Department of Health,HSCIC,24/04/2014,Data Services,General Practice Extraction Service,IN PRACTICE SYSTEMS LTD,404920,"166,280.40",Data Services
Department of Health,HSCIC,23/01/2015,Rent,Estates & Facilities,MWB BUSINESS EXCHANGE CENTRES LTD,2354922,"166,054.09",Rent
Department of Health,HSCIC,23/12/2014,Rent,Estates & Facilities,MWB BUSINESS EXCHANGE CENTRES LTD,2354882,"165,886.00",Rent
Department of Health,HSCIC,25/02/2015,Rent,Estates & Facilities,MWB BUSINESS EXCHANGE CENTRES LTD,2354972,"165,825.08",Rent
Department of Health,HSCIC,25/03/2014,Rent,Estates & Facilities,REGUS (UK) LTD,38317905,"162,947.08",Rent
Department of Health,HSCIC,25/05/2014,Rent,Estates & Facilities,REGUS (UK) LTD,38318105,"162,947.08",Rent
Department of Health,HSCIC,23/05/2014,Rent,Estates & Facilities,REGUS (UK) LTD,38318300,"162,947.08",Rent
Department of Health,HSCIC,25/06/2014,Rent,Estates & Facilities,REGUS (UK) LTD,38318494,"162,947.08",Rent
Department of Health,HSCIC,25/07/2014,Rent,Estates & Facilities,REGUS (UK) LTD,38318731,"162,947.08",Rent
Department of Health,HSCIC,25/08/2014,Rent,Estates & Facilities,REGUS (UK) LTD,38318833,"162,947.08",Rent
Department of Health,HSCIC,25/09/2014,Rent,Estates & Facilities,REGUS (UK) LTD,38319003,"162,947.08",Rent
Department of Health,HSCIC,24/10/2014,Rent,Estates & Facilities,REGUS (UK) LTD,38319167,"162,947.08",Rent
Department of Health,HSCIC,27/06/2014,Travel,Estates & Facilities,REDFERN TRAVEL LTD,PP081003,"162,771.99",Travel
Department of Health,HSCIC,25/07/2014,Rent,Estates & Facilities,MWB BUSINESS EXCHANGE CENTRES LTD,2354617,"161,518.96",Rent
Department of Health,HSCIC,03/02/2015,Workpackage,Operations and Technical Services,XML SOLUTIONS LTD,IC1002,"160,513.38",Workpackage
Department of Health,HSCIC,11/06/2014,Health Surveys,Population Health,NATIONAL CENTRE FOR SOCIAL RESEARCH,51309,"160,000.00",Health Surveys
Department of Health,HSCIC,29/08/2014,Travel,Estates & Facilities,REDFERN TRAVEL LTD,PP085655,"159,324.80",Travel
Department of Health,HSCIC,10/03/2015,External Managed Service,CHRIS Service Management,IDENTITY & PASSPORT SERVICE,1123993,"158,796.60",External Managed Service
Department of Health,HSCIC,30/05/2014,IT Additions,Capital Expenditure,PROBRAND LTD,OPI474330,"157,742.32",IT Additions
Department of Health,HSCIC,27/02/2015,IT Additions,Capital Expenditure,PROBRAND LTD,OPI501657,"157,337.14",IT Additions
Department of Health,HSCIC,09/02/2015,Legal / Professional Fees,Commercial Delivery,IN PRACTICE SYSTEMS LTD,414486,"155,485.00",Legal / Professional Fees
Department of Health,HSCIC,20/03/2015,Computer Hardware,IT Services,CSA WAVERLEY LTD,IN660736,"155,078.06",Computer Hardware
Department of Health,HSCIC,30/04/2014,Travel,Estates & Facilities,REDFERN TRAVEL LTD,Oct-14,"153,728.11",Travel
Department of Health,HSCIC,16/03/2015,Computer Maintenance,IT Services,RICOH UK LTD,56661790,"150,583.68",Computer Maintenance
Department of Health,HSCIC,29/08/2014,Computer Maintenance,IT Services,PROBRAND LTD,OPI483550,"148,610.54",Computer Maintenance
Department of Health,HSCIC,19/12/2014,Data Services,General Practice Extraction Service,UNIVERSITY OF NOTTINGHAM,7702256,"144,857.00",Data Services
Department of Health,HSCIC,27/03/2014,Computer Software/License,IT Services,INSIGHT DIRECT (UK) LTD,1773810,"142,260.49",Computer Software/License
Department of Health,HSCIC,30/04/2014,IT Additions,Capital Expenditure,PROBRAND LTD,OPI470914,"140,757.32",IT Additions
Department of Health,HSCIC,05/09/2014,Workpackage,Service Management,MOZAIC SERVICES LTD,HSCIC001,"139,935.00",Workpackage
Department of Health,HSCIC,19/08/2014,Data Centre Costs,IT Services,HM LAND REGISTRY,1128831,"139,500.00",Data Centre Costs
Department of Health,HSCIC,14/10/2014,Data Centre Costs,Hosting & Infrastructure,HM LAND REGISTRY,1130262,"139,500.00",Data Centre Costs
Department of Health,HSCIC,18/12/2014,Data Centre Costs,Hosting & Infrastructure,HM LAND REGISTRY,1132022,"139,500.00",Data Centre Costs
Department of Health,HSCIC,22/12/2014,IT Additions,Capital Expenditure,PROBRAND LTD,OPI495171,"137,402.90",IT Additions
Department of Health,HSCIC,20/03/2014,Computer Maintenance,IT Services,PROBRAND LTD,OPI466169,"134,159.71",Computer Maintenance
Department of Health,HSCIC,29/07/2014,Computer Maintenance,IT Services,PROBRAND LTD,OPI480725,"133,059.92",Computer Maintenance
Department of Health,HSCIC,19/11/2014,IT Additions,Capital Expenditure,COMPUTACENTER (UK) LTD,3880331828,"131,157.22",IT Additions
Department of Health,HSCIC,29/08/2014,IT Additions,Capital Expenditure,PROBRAND LTD,OPI483608,"130,835.50",IT Additions
Department of Health,HSCIC,28/02/2014,Legal / Professional Fees,Southern Review Commercial ,DLA PIPER UK LLP,MRAVCAY71754,"130,770.06",Legal / Professional Fees
Department of Health,HSCIC,31/03/2014,Legal / Professional Fees,Southern Review Commercial ,DLA PIPER UK LLP,54746614,"129,813.18",Legal / Professional Fees
Department of Health,HSCIC,26/02/2015,Computer Software/License,IT Services,INSIGHT DIRECT (UK) LTD,2257550,"127,794.64",Computer Software/License
Department of Health,HSCIC,31/03/2014,IT Additions,Capital Expenditure,PROBRAND LTD,OPI467662,"127,295.32",IT Additions
Department of Health,HSCIC,24/06/2014,Pension Capitalisation,Corporate,NHS PENSIONS AGENCY,1689627,"126,562.80",Pension Capitalisation
Department of Health,HSCIC,10/09/2014,External Managed Service,Finance,NHS SHARED BUSINESS SERVICES LTD,100026680,"126,075.02",External Managed Service
Department of Health,HSCIC,30/05/2014,Computer Software/License,IT Services,TRUSTMARQUE SOLUTIONS LTD,2213125,"125,048.10",Computer Software/License
Department of Health,HSCIC,31/07/2014,Software Licences,Capital Expenditure,SOFTCAT LTD,INV00988124,"123,648.00",Software Licences
Department of Health,HSCIC,03/04/2014,Computer Maintenance,IT Services,PROBRAND LTD,0PI468133,"122,200.48",Computer Maintenance
Department of Health,HSCIC,19/02/2015,Computer Software/License,IT Services,SPECIALIST COMPUTER CENTRES PLC,OPL966003,"120,565.04",Computer Software/License
Department of Health,HSCIC,15/09/2014,Legal / Professional Fees,Audit Support Unit,BAE SYSTEMS APPLIED INTELLIGENCE,1001000335,"119,940.00",Legal / Professional Fees
Department of Health,HSCIC,10/09/2014,IT Additions,Capital Expenditure,SOFTCAT LTD,INV01007777,"119,545.58",IT Additions
Department of Health,HSCIC,30/01/2015,Travel,Various,REDFERN TRAVEL LTD,PP096902,"119,386.06",Travel
Department of Health,HSCIC,19/05/2014,Computer Maintenance,IT Services,PROBRAND LTD,OPI472947,"119,358.73",Computer Maintenance
Department of Health,HSCIC,28/11/2014,IT Additions,Capital Expenditure,PROBRAND LTD,OPI492972,"119,169.92",IT Additions
Department of Health,HSCIC,15/10/2014,Managed Printers Service,IT Services,DEPARTMENT OF HEALTH,211653,"118,066.43",Managed Printers Service
Department of Health,HSCIC,24/06/2014,Computer Software Additions,Capital Expenditure,COMPUTACENTER UK LTD,3880174639,"117,807.60",Computer Software Additions
Department of Health,HSCIC,30/07/2014,Data Services,General Practice Extraction Service,UNIVERSITY OF NOTTINGHAM,7697315,"113,132.40",Data Services
Department of Health,HSCIC,31/08/2014,Travel,Estates & Facilities,REDFERN TRAVEL LTD,88053,"112,378.21",Travel
Department of Health,HSCIC,16/02/2015,Legal / Professional Fees,Commercial LSP NME,DLA PIPER UK LLP,MRAVCAG71754UKM673847381,"110,493.20",Legal / Professional Fees
Department of Health,HSCIC,30/12/2014,Rent,Estates & Facilities,REGUS (UK) LTD,38319546,"109,236.00",Rent
Department of Health,HSCIC,07/01/2015,IT Consultancy,Infrastructure,QINETIQ LTD,117039875,"108,783.00",IT Consultancy
Department of Health,HSCIC,24/06/2014,Computer Maintenance,IT Services,PROBRAND LTD,OPI476924,"105,925.97",Computer Maintenance
Department of Health,HSCIC,23/03/2015,IT Additions,Capital Expenditure,CSA WAVERLEY LTD,IN660750,"105,803.70",IT Additions
Department of Health,HSCIC,17/10/2014,IT Additions,Capital Expenditure,PROBRAND LTD,OPI488655,"104,809.88",IT Additions
Department of Health,HSCIC,29/09/2014,Computer Maintenance,IT Services,PROBRAND LTD,OPI486552,"104,719.81",Computer Maintenance
Department of Health,HSCIC,29/07/2014,Computer Maintenance,IT Services,PROBRAND LTD,OPI480722,"104,428.25",Computer Maintenance
Department of Health,HSCIC,19/11/2014,IT Additions,Capital Expenditure,PROBRAND LTD,OPI491707,"104,174.07",IT Additions
Department of Health,HSCIC,12/08/2014,Computer Maintenance,IT Services,PROBRAND LTD,OPI482051,"103,618.76",Computer Maintenance
Department of Health,HSCIC,31/07/2014,Computer Maintenance,IT Services,PROBRAND LTD,OPI481064,"102,974.11",Computer Maintenance
Department of Health,HSCIC,25/11/2014,Computer Maintenance,Productivity & Efficiency,COMPUTACENTER (UK) LTD,3880337933,"102,656.34",Computer Maintenance
Department of Health,HSCIC,20/03/2015,IT Additions,Capital Expenditure,KELWAY LTD,PSINV01365107,"102,304.15",IT Additions
Department of Health,HSCIC,30/04/2014,Legal / Professional Fees,Commercial  LSP NME,DLA PIPER UK LLP,54750463,"102,301.02",Legal / Professional Fees
Department of Health,HSCIC,07/11/2014,Fixtures & Fittings Additions,Capital Expenditure,BROADSTOCK OFFICE FURNITURE LTD,OPI097763,"102,168.00",Fixtures & Fittings Additions
Department of Health,HSCIC,31/01/2015,Course Fees,Organisation development & training,CAPITA BUSINESS SERVICES LTD,X59700,"102,034.81",Course Fees
Department of Health,HSCIC,14/04/2014,Computer Software/License,CHRIS Service Management,SOFTWARE AG (UK) LTD,1109004898,"100,478.40",Computer Software/License
Department of Health,HSCIC,30/06/2014,IT Additions,Capital Expenditure,PROBRAND LTD,OPI477589,"100,372.42",IT Additions
Department of Health,HSCIC,22/01/2015,IT Additions,Capital Expenditure,KELWAY LTD,PSINV01321036,"100,335.61",IT Additions
Department of Health,HSCIC,30/10/2014,IT Consultancy,Infrastructure,QINETIQ LTD,117038970,"100,000.00",IT Consultancy
Department of Health,HSCIC,15/12/2014,IT Consultancy,Infrastructure,QINETIQ LTD,117039638,"100,000.00",IT Consultancy
Department of Health,HSCIC,30/01/2015,Workpackage,Operations and Technical Services,MOZAIC SERVICES LTD,ICTRESOURCINGSERVICESMOZ00215,"99,411.00",Workpackage
Department of Health,HSCIC,19/12/2014,IT Additions,Capital Expenditure,PROBRAND LTD,OPI495069,"99,058.86",IT Additions
Department of Health,HSCIC,24/03/2015,Legal / Professional Fees,Clinical audit,DIABETES UK,32063,"97,402.40",Legal / Professional Fees
Department of Health,HSCIC,29/04/2014,Computer Maintenance,IT Services,PROBRAND LTD,OPI470488,"97,150.67",Computer Maintenance
Department of Health,HSCIC,16/01/2015,Computer Software/License,IT Services,SPECIALIST COMPUTER CENTRES PLC,OPL951568,"96,192.98",Computer Software/License
Department of Health,HSCIC,31/10/2014,Legal / Professional Fees,Commercial LSP NME,DLA PIPER UK LLP,54765377,"95,445.68",Legal / Professional Fees
Department of Health,HSCIC,05/08/2014,Software Licences,Capital Expenditure,SOFTCAT LTD,INV00989939,"94,938.70",Software Licences
Department of Health,HSCIC,27/10/2014,Data Services,General Practice Extraction Service,MICROTEST LTD,84243,"94,250.40",Data Services
Department of Health,HSCIC,25/06/2014,Pension Capitalisation,Corporate,NHS PENSIONS AGENCY,1690605,"92,665.70",Pension Capitalisation
Department of Health,HSCIC,01/03/2015,Workpackage,Operations and Technical Services,MOZAIC SERVICES LTD,ICTRESOURCINGSERVICESMOZ00315,"91,017.00",Workpackage
Department of Health,HSCIC,21/10/2014,Contingent Labour,Central services,EXPERIS LTD,73124061,"90,720.00",Contingent Labour
Department of Health,HSCIC,23/12/2014,Computer Software/License,IT Services,PHOENIX SOFTWARE LTD,OPI743375,"90,672.50",Computer Software/License
Department of Health,HSCIC,18/12/2014,Workpackage,Infrastructure,INFORMATION RISK MANAGEMENT,PPVARIOUS,"90,611.64",Workpackage
Department of Health,HSCIC,28/03/2014,Secondment,HSCN,CABINET OFFICE,250009784,"90,460.80",Secondment
Department of Health,HSCIC,02/03/2015,Rates,Estates & Facilities,LEEDS CITY COUNCIL,9.00977E+19,"90,219.00",Rates
Department of Health,HSCIC,01/07/2014,Legal / Professional Fees,Population Health,OFFICE FOR NATIONAL STATISTICS,1028812,"90,181.50",Legal / Professional Fees
Department of Health,HSCIC,18/09/2014,Legal / Professional Fees,Population Health,OFFICE FOR NATIONAL STATISTICS,1029113,"90,181.50",Legal / Professional Fees
Department of Health,HSCIC,10/12/2014,Legal / Professional Fees,Population Health,OFFICE FOR NATIONAL STATISTICS,1029491,"90,181.50",Legal / Professional Fees
Department of Health,HSCIC,29/07/2014,Assets Under Construction,Capital Expenditure,ATOS IT SERVICES UK LTD,5584163802,"90,000.00",Assets Under Construction
Department of Health,HSCIC,27/02/2014,Legal / Professional Fees,Southern Review Commercial ,DLA PIPER UK LLP,57295419,"89,669.16",Legal / Professional Fees
Department of Health,HSCIC,07/05/2014,Software Licences,Capital Expenditure,TRUSTMARQUE SOLUTIONS LTD,2211815,"89,415.22",Software Licences
Department of Health,HSCIC,15/01/2015,Rates,Estates & Facilities,LEEDS CITY COUNCIL,9.01525E+19,"89,024.74",Rates
Department of Health,HSCIC,19/12/2014,IT Consultancy,Infrastructure,QINETIQ LTD,PP117038252/117038597,"87,240.00",IT Consultancy
Department of Health,HSCIC,18/02/2015,Computer Hardware,IT Services,PROBRAND LTD,OPI500624,"86,912.80",Computer Hardware
Department of Health,HSCIC,01/06/2014,External Managed Service,Finance,NHS SHARED BUSINESS SERVICES LTD,100024654,"86,227.51",External Managed Service
Department of Health,HSCIC,09/09/2014,Workpackage,CPIS (formely Child Health),LANCASHIRE COUNTY COUNCIL,5200068512,"86,097.00",Workpackage
Department of Health,HSCIC,26/11/2013,Workpackage,CPIS (formely Child Health),LONDON BOROUGH OF TOWER HAMLETS,10105867,"86,097.00",Workpackage
Department of Health,HSCIC,24/02/2015,Workpackage,Child Health Programme,SWINDON BOROUGH COUNCIL,241433622,"86,097.00",Workpackage
Department of Health,HSCIC,19/05/2014,Computer Maintenance,IT Services,PROBRAND LTD,OPI472951,"85,718.42",Computer Maintenance
Department of Health,HSCIC,17/03/2015,Computer Software/License,IT Services,HEALTH DATA INTELLIGENCE LTD,30,"84,759.42",Computer Software/License
Department of Health,HSCIC,28/03/2014,Computer Software/License,HSCDS - NHS Choices Managed Services,SOFTCAT LTD,INV00923040,"84,456.00",Computer Software/License
Department of Health,HSCIC,19/12/2014,Computer Hardware,IT Services,PROBRAND LTD,OPI495077,"84,243.05",Computer Hardware
Department of Health,HSCIC,19/01/2015,Computer Hardware,IT Services,PROBRAND LTD,OPI497092,"84,071.07",Computer Hardware
Department of Health,HSCIC,07/04/2014,Software Licences,Capital Expenditure,SOFTCAT LTD,INV00927868,"83,571.43",Software Licences
Department of Health,HSCIC,22/09/2014,IT Additions,Capital Expenditure,COMPUTACENTER UK LTD,3880264788,"83,564.33",IT Additions
Department of Health,HSCIC,25/06/2014,IT Additions,Capital Expenditure,COMPUTACENTER UK LTD,3880176295,"81,134.09",IT Additions
Department of Health,HSCIC,25/06/2014,IT Additions,Capital Expenditure,COMPUTACENTER UK LTD,3880176296,"81,134.09",IT Additions
Department of Health,HSCIC,27/01/2015,IT Additions,Capital Expenditure,CSA WAVERLEY LTD,IN660423,"79,874.21",IT Additions
Department of Health,HSCIC,02/06/2014,Rent,Estates & Facilities,PETIT PAPILLON MANAGEMENT LTD,9602,"79,031.93",Rent
Department of Health,HSCIC,24/07/2014,Secondment,Board and Executive Office costs,NHS BUSINESS SERVICES AUTHORITY,4000001285,"78,720.80",Secondment
Department of Health,HSCIC,08/09/2014,Data Services,Primary Care Domain,EGTON MEDICAL INFORMATION SYSTEMS LTD,IN8343811,"78,515.36",Data Services
Department of Health,HSCIC,30/09/2014,Legal / Professional Fees,Commercial LSP NME,DLA PIPER UK LLP,54762206,"78,514.50",Legal / Professional Fees
Department of Health,HSCIC,04/09/2014,Rent,Estates & Facilities,PETIT PAPILLON MANAGEMENT LTD,9882,"78,462.05",Rent
Department of Health,HSCIC,01/12/2014,Rent,Estates & Facilities,PETIT PAPILLON MANAGEMENT LTD,10001,"78,462.05",Rent
Department of Health,HSCIC,16/09/2014,Contract - Other External,General Practice Extraction Service,ATOS IT SERVICES UK LTD,5584167046,"78,099.60",Contract - Other External
Department of Health,HSCIC,18/11/2014,External Managed Service,IT Services,REDCENTRIC,184704,"77,753.24",External Managed Service
Department of Health,HSCIC,01/04/2014,Travel,Estates & Facilities,EXPOTEL HOTEL RESERVATIONS LTD,949959,"77,311.51",Travel
Department of Health,HSCIC,14/01/2015,IT Additions,Capital Expenditure,CSA WAVERLEY LTD,IN660333,"76,266.00",IT Additions
Department of Health,HSCIC,28/11/2014,IT Consultancy,Infrastructure,DIGITAL ASSURANCE CONSULTING LTD,DAEC2222,"75,384.00",IT Consultancy
Department of Health,HSCIC,24/06/2014,Computer Maintenance,IT Services,PROBRAND LTD,OPI476923,"75,376.29",Computer Maintenance
Department of Health,HSCIC,22/01/2015,Health Surveys,"Surveys, lifestyle & public health",NATIONAL CENTRE FOR SOCIAL RESEARCH,51734,"75,000.00",Health Surveys
Department of Health,HSCIC,02/06/2014,Rent,Estates & Facilities,PETIT PAPILLON MANAGEMENT LTD,9599,"74,856.98",Rent
Department of Health,HSCIC,04/09/2014,Rent,Estates & Facilities,PETIT PAPILLON MANAGEMENT LTD,9879,"74,321.34",Rent
Department of Health,HSCIC,01/12/2014,Rent,Estates & Facilities,PETIT PAPILLON MANAGEMENT LTD,9999,"74,321.34",Rent
Department of Health,HSCIC,13/03/2014,Rates,Estates & Facilities,EXETER CITY COUNCIL,7.00138E+19,"74,228.00",Rates
Department of Health,HSCIC,02/06/2014,Travel,Estates & Facilities,EXPOTEL HOTEL RESERVATIONS LTD,962136,"72,564.72",Travel
Department of Health,HSCIC,27/06/2014,IT Additions,Capital Expenditure,CSA (WAVERLEY ) LTD,IN659415,"71,820.00",IT Additions
Department of Health,HSCIC,17/12/2014,Legal / Professional Fees,Commercial  LSP NME,DLA PIPER UK LLP,54760416,"71,598.72",Legal / Professional Fees
Department of Health,HSCIC,19/03/2014,Secondment,BT LSP Programme,GUYS & ST THOMAS HOSPITAL NHS FOUNDATION TRUST,3136874,"71,375.32",Secondment
Department of Health,HSCIC,03/11/2014,Fixtures & Fittings Additions,Capital Expenditure,SENATOR INTERNATIONAL LTD,S01202824,"70,841.76",Fixtures & Fittings Additions
Department of Health,HSCIC,23/12/2014,Legal / Professional Fees,Commercial LSP NME,DLA PIPER UK LLP,54769589,"70,529.10",Legal / Professional Fees
Department of Health,HSCIC,31/03/2014,Computer Software Additions,Capital Expenditure,SOFTCAT LTD,INV00927843,"70,177.33",Computer Software Additions
Department of Health,HSCIC,16/09/2014,Contract - Other External,General Practice Extraction Service,ATOS IT SERVICES UK LTD,5584167045,"69,999.60",Contract - Other External
Department of Health,HSCIC,14/05/2014,IT Additions,Capital Expenditure,CSA (WAVERLEY ) LTD,IN659238,"69,963.48",IT Additions
Department of Health,HSCIC,29/09/2014,IT Additions,Capital Expenditure,PROBRAND LTD,OPI486551,"69,325.07",IT Additions
Department of Health,HSCIC,01/04/2014,Staff Season Tickets,Corporate,WEST YORKSHIRE PASSENGER TRANSPORT EXECUTIVE,PPCS3816,"69,017.97",Staff Season Tickets
Department of Health,HSCIC,09/04/2014,Computer Software Additions,Capital Expenditure,SOFTWARE BOX LTD,INV69655,"68,938.80",Computer Software Additions
Department of Health,HSCIC,18/11/2014,IT Additions,Capital Expenditure,CSA (WAVERLEY ) LTD,IN660051,"67,568.14",IT Additions
Department of Health,HSCIC,18/07/2014,Audit Fees: Statutory,Finance,NATIONAL AUDIT OFFICE,4952,"67,250.00",Audit Fees: Statutory
Department of Health,HSCIC,05/08/2014,Legal / Professional Fees,Southern Review Commercial ,ERNST & YOUNG LLP,GB10100070880,"66,776.18",Legal / Professional Fees
Department of Health,HSCIC,28/02/2014,IT Additions,Capital Expenditure,COMPUTACENTER UK LTD,3880053722,"66,099.56",IT Additions
Department of Health,HSCIC,28/03/2014,IT Additions,Capital Expenditure,COMPUTACENTER UK LTD,3880086337,"66,099.56",IT Additions
Department of Health,HSCIC,03/04/2014,Computer Software/License,Technical Architecture,GS1 UK,14006086,"66,000.00",Computer Software/License
Department of Health,HSCIC,29/09/2014,Course Fees,SUS Spine,ORACLE CORPORATION UK LTD,1457564,"65,750.02",Course Fees
Department of Health,HSCIC,29/08/2014,Computer Maintenance,IT Services,PROBRAND LTD,OPI483663,"65,703.28",Computer Maintenance
Department of Health,HSCIC,02/12/2014,Fixtures & Fittings Additions,Capital Expenditure,FLEXIFORM BUSINESS FURNITURE LTD,413608,"65,538.00",Fixtures & Fittings Additions
Department of Health,HSCIC,09/03/2015,Rent,Estates & Facilities,PETIT PAPILLON MANAGEMENT LTD,10364,"65,385.04",Rent
Department of Health,HSCIC,25/02/2015,Data Services,General Practice Extraction Service,ATOS IT SERVICES UK LTD,5584179033,"65,083.33",Data Services
Department of Health,HSCIC,25/02/2015,Data Services,General Practice Extraction Service,ATOS IT SERVICES UK LTD,5584179034,"65,083.33",Data Services
Department of Health,HSCIC,20/03/2015,Data Services,General Practice Extraction Service,ATOS IT SERVICES UK LTD,5584181097,"65,083.33",Data Services
Department of Health,HSCIC,20/03/2015,Data Services,General Practice Extraction Service,ATOS IT SERVICES UK LTD,5584181098,"65,083.33",Data Services
Department of Health,HSCIC,20/03/2015,Data Services,General Practice Extraction Service,ATOS IT SERVICES UK LTD,5584181099,"65,083.33",Data Services
Department of Health,HSCIC,20/03/2015,Data Services,General Practice Extraction Service,ATOS IT SERVICES UK LTD,5584181100,"65,083.33",Data Services
Department of Health,HSCIC,14/11/2014,Health Surveys,Population Health,NATIONAL CENTRE FOR SOCIAL RESEARCH,51605,"64,635.00",Health Surveys
Department of Health,HSCIC,18/11/2014,Workpackage,Infrastructure,DIONACH LTD,2562,"63,600.00",Workpackage
Department of Health,HSCIC,30/04/2014,External Managed Service,Digital Assessment Service,INFERMED LTD,7814,"63,600.00",External Managed Service
Department of Health,HSCIC,30/04/2014,External Managed Service,Digital Assessment Service,INFERMED LTD,7914,"63,600.00",External Managed Service
Department of Health,HSCIC,01/05/2014,External Managed Service,Digital Assessment Service,INFERMED LTD,8714,"63,600.00",External Managed Service
Department of Health,HSCIC,02/06/2014,External Managed Service,Digital Assessment Service,INFERMED LTD,10314,"63,600.00",External Managed Service
Department of Health,HSCIC,01/07/2014,External Managed Service,Digital Assessment Service,INFERMED LTD,11814,"63,600.00",External Managed Service
Department of Health,HSCIC,01/08/2014,External Managed Service,Digital Assessment Service,INFERMED LTD,13614,"63,600.00",External Managed Service
Department of Health,HSCIC,01/09/2014,External Managed Service,Digital Assessment Service,INFERMED LTD,15614,"63,600.00",External Managed Service
Department of Health,HSCIC,01/10/2014,External Managed Service,Digital Assessment Service,INFERMED LTD,17514,"63,600.00",External Managed Service
Department of Health,HSCIC,01/11/2014,External Managed Service,Digital Assessment Service,INFERMED LTD,19314,"63,600.00",External Managed Service
Department of Health,HSCIC,01/12/2014,External Managed Service,Digital Assessment Service,INFERMED LTD,21114,"63,600.00",External Managed Service
Department of Health,HSCIC,18/12/2014,Data Services,Commercial Delivery,MICROTEST LTD,84663,"62,895.76",Data Services
Department of Health,HSCIC,21/07/2014,Data Services,General Practice Extraction Service,MICROTEST LTD,83543,"62,246.02",Data Services
Department of Health,HSCIC,18/03/2014,Rent,Estates & Facilities,DEPARTMENT OF HEALTH,210700,"61,734.00",Rent
Department of Health,HSCIC,28/04/2014,Data Services,General Practice Extraction Service,ATOS IT SERVICES UK LTD,5584157060,"60,000.00",Data Services
Department of Health,HSCIC,07/05/2014,Data Services,General Practice Extraction Service,ATOS IT SERVICES UK LTD,5584157725,"60,000.00",Data Services
Department of Health,HSCIC,11/06/2014,Data Services,General Practice Extraction Service,ATOS IT SERVICES UK LTD,5584160495,"60,000.00",Data Services
Department of Health,HSCIC,16/09/2014,Data Services,General Practice Extraction Service,ATOS IT SERVICES UK LTD,5584167044,"60,000.00",Data Services
Department of Health,HSCIC,18/09/2014,Assets Under Construction,Capital Expenditure,ATOS IT SERVICES UK LTD,5584167159,"60,000.00",Assets Under Construction
Department of Health,HSCIC,31/08/2014,Legal / Professional Fees,Southern Review Commercial ,DLA PIPER UK LLP,54760025,"59,884.49",Legal / Professional Fees
Department of Health,HSCIC,27/02/2014,Legal / Professional Fees,Southern Review Commercial ,DLA PIPER UK LLP,57295417,"59,660.52",Legal / Professional Fees
Department of Health,HSCIC,30/09/2014,IT Consultancy,Infrastructure,QINETIQ LTD,117038597,"59,500.00",IT Consultancy
Department of Health,HSCIC,15/09/2014,Pension Capitalisation,Corporate,NHS PENSIONS AGENCY,1793672,"59,116.09",Pension Capitalisation
Department of Health,HSCIC,20/06/2014,Staff Childcare Vouchers,Corporate,CHILDCARE VOUCHERS LTD,PPIN089857411,"58,219.59",Staff Childcare Vouchers
Department of Health,HSCIC,09/03/2015,Rates,Estates & Facilities,REDDITCH BOROUGH COUNCIL,3.00009E+20,"58,174.00",Rates
Department of Health,HSCIC,11/02/2015,Travel,Clinical Classifications Service,CAPITA TRAVEL & EVENTS,DI4155652,"57,350.00",Travel
Department of Health,HSCIC,16/05/2014,Staff Childcare Vouchers,Corporate,CHILDCARE VOUCHERS LTD,PPIN088054553,"57,047.03",Staff Childcare Vouchers
Department of Health,HSCIC,25/03/2014,Fixtures & Fittings Additions,Capital Expenditure,MWB BUSINESS EXCHANGE CENTRES LTD,2354395,"56,983.12",Fixtures & Fittings Additions
Department of Health,HSCIC,04/03/2015,Fixtures & Fittings Additions,Capital Expenditure,BROADSTOCK OFFICE FURNITURE LTD,OPI100200,"56,975.00",Fixtures & Fittings Additions
Department of Health,HSCIC,16/04/2014,Staff Childcare Vouchers,Corporate,CHILDCARE VOUCHERS LTD,PPCHILDCAREAPR14,"56,898.38",Staff Childcare Vouchers
Department of Health,HSCIC,31/12/2014,IT Additions,Capital Expenditure,ANS GROUP PLC,1000690,"56,537.16",IT Additions
Department of Health,HSCIC,17/11/2014,Data Services,Audit Support Unit,INSIGHT DIRECT (UK) LTD,2110329,"56,400.00",Data Services
Department of Health,HSCIC,18/12/2014,IT Additions,Capital Expenditure,ANS GROUP PLC,1000628,"56,342.76",IT Additions
Department of Health,HSCIC,19/06/2014,Travel,Estates & Facilities,EXPOTEL HOTEL RESERVATIONS LTD,PP951562,"56,309.74",Travel
Department of Health,HSCIC,27/02/2015,Computer Hardware,IT Services,PROBRAND LTD,OPI501656,"56,257.80",Computer Hardware
Department of Health,HSCIC,01/07/2014,Travel,Estates & Facilities,EXPOTEL HOTEL RESERVATIONS LTD,966554,"55,688.66",Travel
Department of Health,HSCIC,18/12/2014,Computer Maintenance,IT Services,ANS GROUP PLC,INV034591,"55,137.72",Computer Maintenance
Department of Health,HSCIC,28/04/2014,Computer Software/License,General Practice Extraction Service,INSIGHT DIRECT (UK) LTD,1816281,"55,050.15",Computer Software/License
Department of Health,HSCIC,25/02/2015,Computer Software/License,IT Services,SOFTCAT LTD,INV01103275,"54,607.36",Computer Software/License
Department of Health,HSCIC,07/01/2015,Computer Software/License,Clinical Classifications Service,SPECIALIST COMPUTER CENTRES PLC,OPL947601,"54,537.01",Computer Software/License
Department of Health,HSCIC,25/02/2015,Audit Fees: Internal,Corporate Assurance,DEPARTMENT OF HEALTH,212408,"54,505.32",Audit Fees: Internal
Department of Health,HSCIC,26/02/2015,Travel,Various,CAPITA TRAVEL & EVENTS,PPLI628313,"53,769.50",Travel
Department of Health,HSCIC,25/06/2014,Pension Capitalisation,Corporate,NHS PENSIONS AGENCY,1690602,"53,557.69",Pension Capitalisation
Department of Health,HSCIC,05/06/2014,Data Services,Audit Support Unit,ROYAL COLLEGE OF SURGEONS OF ENGLAND,9CEU00278,"53,428.00",Data Services
Department of Health,HSCIC,09/07/2014,Pension Capitalisation,Corporate,NHS PENSIONS AGENCY,1700279,"53,397.03",Pension Capitalisation
Department of Health,HSCIC,30/10/2014,Computer Software/License,Service Management,SOFTCAT LTD,INV01036570,"53,336.70",Computer Software/License
Department of Health,HSCIC,01/01/2015,External Managed Service,Digital Assessment Service,INFERMED LTD,415,"53,000.00",External Managed Service
Department of Health,HSCIC,01/02/2015,External Managed Service,Digital Assessment Service,INFERMED LTD,1915,"53,000.00",External Managed Service
Department of Health,HSCIC,01/03/2015,External Managed Service,Digital Assessment Service,INFERMED LTD,3215,"53,000.00",External Managed Service
Department of Health,HSCIC,30/01/2015,Computer Software/License,IT Services,INSIGHT DIRECT (UK) LTD,2214616,"52,968.39",Computer Software/License
Department of Health,HSCIC,05/08/2014,Software Licences,Capital Expenditure,TRUSTMARQUE SOLUTIONS LTD,2216253,"52,935.06",Software Licences
Department of Health,HSCIC,10/12/2014,Data Services,Audit Support Unit,ROYAL COLLEGE OF SURGEONS OF ENGLAND,9CEU00292,"52,840.00",Data Services
Department of Health,HSCIC,30/01/2015,Computer Hardware,IT Services,PROBRAND LTD,OPI498830,"52,640.30",Computer Hardware
Department of Health,HSCIC,01/08/2014,Travel,Estates & Facilities,EXPOTEL HOTEL RESERVATIONS LTD,970058,"52,425.84",Travel
Department of Health,HSCIC,07/04/2014,Computer Software Additions,Capital Expenditure,TRUSTMARQUE SOLUTIONS LTD,2210477,"51,573.60",Computer Software Additions
Department of Health,HSCIC,05/06/2014,Legal / Professional Fees,Southern Review Commercial ,ERNST & YOUNG LLP,GB10100068075,"51,191.21",Legal / Professional Fees
Department of Health,HSCIC,05/03/2015,Computer Software/License,IT Services,TRUSTMARQUE SOLUTIONS LTD,2226187,"50,984.46",Computer Software/License
Department of Health,HSCIC,09/01/2015,Computer Maintenance,IT Services,ANS GROUP PLC,INV034537,"50,925.00",Computer Maintenance
Department of Health,HSCIC,17/12/2014,Cleaning,Estates & Facilities,DEPARTMENT OF HEALTH,211986,"50,741.28",Cleaning
Department of Health,HSCIC,13/03/2014,Rates,Estates & Facilities,EXETER CITY COUNCIL,7.00137E+19,"50,128.00",Rates
Department of Health,HSCIC,18/03/2015,Data Services,General Practice Extraction Service,ATOS IT SERVICES UK LTD,5584180925,"50,000.00",Data Services
Department of Health,HSCIC,04/12/2014,Health Surveys,Population Health,NATIONAL CENTRE FOR SOCIAL RESEARCH,51655,"50,000.00",Health Surveys
Department of Health,HSCIC,17/11/2014,Contract - Other External,IT Skills Development ,UNIVERSITY HOSPITALS OF MORECAMBE BAY NHS FOUNDATION TRUST,237657,"50,000.00",Contract - Other External
Department of Health,HSCIC,28/11/2014,Contract - Other External,IT Skills Development ,UNIVERSITY HOSPITALS OF MORECAMBE BAY NHS FOUNDATION TRUST,237899,"50,000.00",Contract - Other External
Department of Health,HSCIC,09/12/2014,Contract - Other External,IT Skills Development ,UNIVERSITY HOSPITALS OF MORECAMBE BAY NHS FOUNDATION TRUST,238043,"50,000.00",Contract - Other External
Department of Health,HSCIC,01/12/2014,Rent,Estates & Facilities,LOXTON DEVELOPMENTS LTD,A4943,"48,779.23",Rent
Department of Health,HSCIC,05/06/2014,Legal / Professional Fees,Southern Review Commercial ,ERNST & YOUNG LLP,GB10100068087,"48,382.24",Legal / Professional Fees
Department of Health,HSCIC,01/04/2014,Legal / Professional Fees,Southern Review Commercial ,ERNST & YOUNG LLP,GB10100064409,"48,208.98",Legal / Professional Fees
Department of Health,HSCIC,13/01/2015,Legal / Professional Fees,Commercial LSP NME,ERNST & YOUNG LLP,GB10100078486,"48,088.27",Legal / Professional Fees
Department of Health,HSCIC,16/12/2014,Computer Maintenance,Productivity & Efficiency,COMPUTACENTER (UK) LTD,3880360824,"47,915.82",Computer Maintenance
Department of Health,HSCIC,17/11/2014,Data Services,General Practice Extraction Service,INSIGHT DIRECT (UK) LTD,2110363,"47,689.06",Data Services
Department of Health,HSCIC,27/03/2014,Data Services,Clinical & Professional Information Standards,ROYAL COLLEGE OF PHYSICIANS,INV013997,"47,640.00",Data Services
Department of Health,HSCIC,01/12/2014,Software Licences,Capital Expenditure,SOFTCAT LTD,INV01054002,"47,605.82",Software Licences
Department of Health,HSCIC,28/11/2014,Software Licences,Capital Expenditure,SOFTCAT LTD,INV01055079,"47,605.82",Software Licences
Department of Health,HSCIC,03/09/2014,Rent,Estates & Facilities,HOME OFFICE,1121216,"47,586.00",Rent
Department of Health,HSCIC,10/11/2014,Rent,Estates & Facilities,HOME OFFICE,1122154,"47,586.00",Rent
Department of Health,HSCIC,01/12/2014,Rent,Estates & Facilities,EVERSHEDS LLP,12000633,"47,502.61",Rent
Department of Health,HSCIC,12/08/2014,Software Licences,Capital Expenditure,SOFTCAT LTD,INV00993411,"47,161.80",Software Licences
Department of Health,HSCIC,16/12/2014,Course Fees,Organisation development & training,CAPITA BUSINESS SERVICES LTD,A57049,"46,795.20",Course Fees
Department of Health,HSCIC,30/09/2014,Contract - Other External,IG Delivery,EPIC,21948,"46,409.94",Contract - Other External
Department of Health,HSCIC,22/05/2014,Computer Software/License,ODS Team,TOMORROWS GUIDES LTD,31285,"46,200.00",Computer Software/License
Department of Health,HSCIC,13/01/2015,Legal / Professional Fees,Commercial LSP NME,ERNST & YOUNG LLP,GB10100078489,"45,627.87",Legal / Professional Fees
Department of Health,HSCIC,21/03/2014,Course Fees,Infrastructure,ISC (2) INSTITUTE,605950,"45,420.00",Course Fees
Department of Health,HSCIC,04/09/2014,Legal / Professional Fees,Commercial  LSP NME,ERNST & YOUNG LLP,GB10100071886,"45,403.99",Legal / Professional Fees
Department of Health,HSCIC,07/10/2014,Legal / Professional Fees,Southern Review Commercial ,ERNST & YOUNG LLP,GB10100073415,"45,116.96",Legal / Professional Fees
Department of Health,HSCIC,11/02/2015,Legal / Professional Fees,Population Health,OFFICE FOR NATIONAL STATISTICS,1029745,"45,000.00",Legal / Professional Fees
Department of Health,HSCIC,01/10/2014,Computer Software/License,IT Services,PHOENIX SOFTWARE LTD,OPI736710,"44,875.50",Computer Software/License
Department of Health,HSCIC,30/04/2014,Computer Maintenance,IT Services,PROBRAND LTD,OPI470915,"44,856.69",Computer Maintenance
Department of Health,HSCIC,05/11/2014,Computer Software/License,IT Services,INSIGHT DIRECT (UK) LTD,2094130,"44,527.80",Computer Software/License
Department of Health,HSCIC,19/11/2014,IT Additions,Capital Expenditure,COMPUTACENTER (UK) LTD,3880331831,"43,719.07",IT Additions
Department of Health,HSCIC,04/09/2014,Software Licences,Capital Expenditure,COMPUTACENTER UK LTD,3880247378,"43,294.50",Software Licences
Department of Health,HSCIC,11/03/2015,Workpackage,Child Health Programme,DURHAM COUNTY COUNCIL,501068381,"43,048.50",Workpackage
Department of Health,HSCIC,17/03/2015,IT Additions,Capital Expenditure,CSA WAVERLEY LTD,IN660711,"42,951.07",IT Additions
Department of Health,HSCIC,24/07/2014,IT Additions,Capital Expenditure,CSA (WAVERLEY ) LTD,IN659537,"42,313.80",IT Additions
Department of Health,HSCIC,13/01/2015,Secondment,Board & Executive Office Costs,DEPARTMENT OF HEALTH,212106,"42,061.30",Secondment
Department of Health,HSCIC,11/06/2014,Health Surveys,Population Health,NATIONAL CENTRE FOR SOCIAL RESEARCH,51314,"42,000.00",Health Surveys
Department of Health,HSCIC,26/08/2014,Health Surveys,Population Health,NATIONAL CENTRE FOR SOCIAL RESEARCH,51451,"42,000.00",Health Surveys
Department of Health,HSCIC,24/10/2014,Health Surveys,Population Health,NATIONAL CENTRE FOR SOCIAL RESEARCH,51562,"42,000.00",Health Surveys
Department of Health,HSCIC,31/10/2014,Legal / Professional Fees,HSCN,IDENTITY E2E,100134,"41,661.11",Legal / Professional Fees
Department of Health,HSCIC,14/03/2015,Rates,Estates & Facilities,LONDON BOROUGH OF CAMDEN,6.81646E+18,"41,553.00",Rates
Department of Health,HSCIC,07/04/2014,Health Surveys,Population Health,MARKET & OPINION RESEARCH INTERNATIONAL LTD,14000754,"41,520.00",Health Surveys
Department of Health,HSCIC,11/12/2014,Contingent Labour,Care.Data,CAPITA BUSINESS SERVICES LTD,LO10019001,"41,428.80",Contingent Labour
Department of Health,HSCIC,31/07/2014,Computer Software/License,HSCDS - NHS Choices Managed Services,ANTBITS LTD,01138HSCIC,"41,040.00",Computer Software/License
Department of Health,HSCIC,15/08/2014,Computer Software/License,HSCDS - NHS Choices Managed Services,ANTBITS LTD,01143HSCIC,"41,040.00",Computer Software/License
Department of Health,HSCIC,03/09/2014,Rent,Estates & Facilities,LOXTON DEVELOPMENTS LTD,A4791,"40,920.61",Rent
Department of Health,HSCIC,14/03/2014,Rates,Estates & Facilities,CAMDEN NNDR,6.81646E+15,"40,662.00",Rates
Department of Health,HSCIC,11/04/2014,Contract - Other External,Clinical indicators,ATCHAI LTD,I000074,"39,924.00",Contract - Other External
Department of Health,HSCIC,08/08/2014,Computer Software/License,Commercial Finance,LEO LEARNING LTD,21644,"39,856.40",Computer Software/License
Department of Health,HSCIC,10/12/2014,Computer Maintenance,IT Services,COMPUTACENTER (UK) LTD,3780015973,"39,766.12",Computer Maintenance
Department of Health,HSCIC,17/11/2014,Computer Maintenance,IT Services,COMPUTACENTER UK LTD,3780014630,"39,766.12",Computer Maintenance
Department of Health,HSCIC,27/02/2015,Workpackage,HSCN,IDENTITY E2E,100147,"39,717.69",Workpackage
Department of Health,HSCIC,30/01/2015,Workpackage,HSCN,IDENTITY E2E,100144,"39,697.19",Workpackage
Department of Health,HSCIC,30/01/2015,Contract - Other External,Workforce & facilities,ASCKEY DATA SERVICES LTD,4959,"39,655.00",Contract - Other External
Department of Health,HSCIC,11/02/2015,IT Consultancy,Infrastructure,QINETIQ LTD,117040315,"39,600.00",IT Consultancy
Department of Health,HSCIC,07/05/2014,IT Additions,Capital Expenditure,MISCO,M11600179,"39,083.89",IT Additions
Department of Health,HSCIC,23/04/2014,Computer Maintenance,IT Services,COMPUTACENTER UK LTD,3880111127,"39,055.07",Computer Maintenance
Department of Health,HSCIC,27/03/2014,Computer Software/License,Casemix Programme,3M HEALTH CARE LTD,940897,"38,685.12",Computer Software/License
Department of Health,HSCIC,28/03/2014,Computer Software Additions,Capital Expenditure,TRUSTMARQUE SOLUTIONS LTD,2209952,"38,550.00",Computer Software Additions
Department of Health,HSCIC,02/03/2015,Rates,Estates & Facilities,LEEDS CITY COUNCIL,9.00693E+19,"38,454.00",Rates
Department of Health,HSCIC,25/06/2014,Secondment,PACS,CHRISTIE HOSPITAL NHS FOUNDATION TRUST,20281,"37,943.38",Secondment
Department of Health,HSCIC,24/06/2014,IT Additions,Capital Expenditure,PROBRAND LTD,OPI476921,"37,924.80",IT Additions
Department of Health,HSCIC,31/08/2014,Course Fees,Organisation development & training,CAPITA BUSINESS SERVICES LTD,A46801,"37,748.98",Course Fees
Department of Health,HSCIC,19/03/2014,Rates,Estates & Facilities,LEEDS CITY COUNCIL,9.00693E+19,"37,596.00",Rates
Department of Health,HSCIC,31/10/2014,Computer Hardware,IT Services,PROBRAND LTD,OPI490134,"37,287.92",Computer Hardware
Department of Health,HSCIC,29/10/2014,Secondment,Board and Executive Office costs,DEPARTMENT OF HEALTH,211746,"37,190.45",Secondment
Department of Health,HSCIC,29/10/2014,Secondment,Board and Executive Office costs,DEPARTMENT OF HEALTH,211747,"37,101.05",Secondment
Department of Health,HSCIC,06/02/2015,Legal / Professional Fees,Commercial LSP NME,ERNST & YOUNG LLP,GB10100080008,"37,017.87",Legal / Professional Fees
Department of Health,HSCIC,16/09/2014,Secondment,Media & Corporate Relations,DEPARTMENT OF HEALTH,211515,"36,754.55",Secondment
Department of Health,HSCIC,31/07/2014,Computer Maintenance,IT Services,PROBRAND LTD,OPI481063,"36,673.52",Computer Maintenance
Department of Health,HSCIC,13/01/2015,Legal / Professional Fees,Commercial LSP NME,ERNST & YOUNG LLP,GB10100078488,"36,618.53",Legal / Professional Fees
Department of Health,HSCIC,22/10/2014,Secondment,Media & Corporate Relations,DEPARTMENT OF HEALTH,211697,"36,174.79",Secondment
Department of Health,HSCIC,08/08/2014,Computer Maintenance,IT Services,COMPUTACENTER UK LTD,3780010173,"36,158.16",Computer Maintenance
Department of Health,HSCIC,19/09/2014,Computer Maintenance,IT Services,COMPUTACENTER UK LTD,3780011878,"36,158.16",Computer Maintenance
Department of Health,HSCIC,14/10/2014,Computer Maintenance,IT Services,COMPUTACENTER UK LTD,3780013164,"36,158.16",Computer Maintenance
Department of Health,HSCIC,27/03/2014,Computer Software/License,NHS Pathways,STONEBURN SOFTWARE SERVICES LTD,INVGE20067,"36,030.02",Computer Software/License
Department of Health,HSCIC,31/03/2014,Contract - Other External,Workforce & facilities,ASCKEY DATA SERVICES LTD,4604,"36,000.00",Contract - Other External
Department of Health,HSCIC,01/07/2014,External Managed Service,Digital Assessment Service,INFERMED LTD,12314,"36,000.00",External Managed Service
Department of Health,HSCIC,30/09/2014,External Managed Service,Digital Assessment Service,INFERMED LTD,17114,"36,000.00",External Managed Service
Department of Health,HSCIC,24/07/2014,Secondment,Board and Executive Office costs,NHS BUSINESS SERVICES AUTHORITY,4000001286,"35,944.84",Secondment
Department of Health,HSCIC,30/06/2014,Pension Capitalisation,Corporate,NHS PENSIONS AGENCY,1693146,"35,790.50",Pension Capitalisation
Department of Health,HSCIC,30/06/2014,Legal / Professional Fees,SUS Spine,PRICEWATERHOUSECOOPERS LLP,1354204375,"35,714.40",Legal / Professional Fees
Department of Health,HSCIC,04/06/2014,Data Services,Audit Support Unit,UNIVERSITY OF NOTTINGHAM,7695449,"35,652.96",Data Services
Department of Health,HSCIC,02/03/2015,Rates,Estates & Facilities,LEEDS CITY COUNCIL,9.00938E+19,"35,496.00",Rates
Department of Health,HSCIC,21/08/2014,Messaging System,Estates & Facilities,VOCAL,134786,"35,446.92",Messaging System
Department of Health,HSCIC,28/10/2014,Secondment,Information Assurance Special Projects,DEPARTMENT OF HEALTH,211744,"35,373.53",Secondment
Department of Health,HSCIC,15/04/2014,Computer Software/License,IT Services,COMPUTACENTER UK LTD,3780004180,"35,152.40",Computer Software/License
Department of Health,HSCIC,16/05/2014,Computer Maintenance,IT Services,COMPUTACENTER UK LTD,3780005759,"35,152.40",Computer Maintenance
Department of Health,HSCIC,06/06/2014,Computer Maintenance,IT Services,COMPUTACENTER UK LTD,3780007096,"35,152.40",Computer Maintenance
Department of Health,HSCIC,10/07/2014,Computer Maintenance,IT Services,COMPUTACENTER UK LTD,3780008724,"35,152.40",Computer Maintenance
Department of Health,HSCIC,21/11/2014,Travel,Various,CAPITA TRAVEL & EVENTS,IN3881593,"35,093.85",Travel
Department of Health,HSCIC,23/12/2014,Rent,Estates & Facilities,REGUS (UK) LTD,38319477,"35,000.65",Rent
Department of Health,HSCIC,06/03/2015,Computer Software/License,Service Management,SOFTCAT LTD,INV01109408,"34,847.25",Computer Software/License
Department of Health,HSCIC,28/11/2014,IT Additions,Capital Expenditure,PROBRAND LTD,OPI492574,"34,605.60",IT Additions
Department of Health,HSCIC,18/03/2014,Data Services,HES Analysis,NORTHGATE INFORMATION SOLUTIONS UK LTD,91301371,"34,557.67",Data Services
Department of Health,HSCIC,02/06/2014,Rent,Estates & Facilities,PETIT PAPILLON MANAGEMENT LTD,9613,"34,396.01",Rent
Department of Health,HSCIC,10/07/2014,Secondment,Corporate,DEPARTMENT FOR WORK AND PENSIONS,2923153,"34,219.16",Secondment
Department of Health,HSCIC,25/11/2014,Computer Maintenance,Productivity & Efficiency,COMPUTACENTER (UK) LTD,3880337934,"34,218.78",Computer Maintenance
Department of Health,HSCIC,04/09/2014,Rent,Estates & Facilities,PETIT PAPILLON MANAGEMENT LTD,9893,"34,148.40",Rent
Department of Health,HSCIC,01/12/2014,Rent,Estates & Facilities,PETIT PAPILLON MANAGEMENT LTD,10011,"34,148.40",Rent
Department of Health,HSCIC,01/08/2014,Staff Bike Scheme,Corporate,SME HCI LTD,123095,"33,902.70",Staff Bike Scheme
Department of Health,HSCIC,13/03/2015,Fixtures & Fittings Additions,Capital Expenditure,SENATOR INTERNATIONAL LTD,PPS01212495,"33,899.52",Fixtures & Fittings Additions
Department of Health,HSCIC,25/04/2014,Data Services,General Practice Extraction Service,UNIVERSITY OF NOTTINGHAM,7694236,"33,876.00",Data Services
Department of Health,HSCIC,22/04/2014,Secondment,Social care,MANCHESTER CITY COUNCIL,8500402789,"33,846.40",Secondment
Department of Health,HSCIC,16/03/2015,Computer Software/License,NHS Choices Non Core,ANTBITS LTD,01172HSCIC,"33,800.00",Computer Software/License
Department of Health,HSCIC,25/11/2014,Fixtures & Fittings Additions,Capital Expenditure,KERR INTERIORS LTD,2746,"33,702.00",Fixtures & Fittings Additions
Department of Health,HSCIC,30/09/2014,Computer Maintenance,IT Services,PROBRAND LTD,OPI486818,"33,688.42",Computer Maintenance
Department of Health,HSCIC,08/11/2014,Computer Software/License,Product Development,PING IDENTITY CORPORATION,INV00081991,"33,555.49",Computer Software/License
Department of Health,HSCIC,01/02/2015,Staff Bike Scheme,Corporate,SME HCI LTD,123875,"33,401.06",Staff Bike Scheme
Department of Health,HSCIC,25/11/2014,Computer Software/License,HSCN,IDENTITY E2E,100139,"33,387.92",Computer Software/License
Department of Health,HSCIC,19/11/2014,Computer Maintenance,IT Services,COMPUTACENTER (UK) LTD,3880332855,"33,336.40",Computer Maintenance
Department of Health,HSCIC,15/01/2015,Computer Maintenance,IT Services,COMPUTACENTER (UK) LTD,3780017620,"33,138.43",Computer Maintenance
Department of Health,HSCIC,16/02/2015,Computer Maintenance,IT Services,COMPUTACENTER (UK) LTD,3780018849,"33,138.43",Computer Maintenance
Department of Health,HSCIC,10/03/2015,Computer Maintenance,IT Services,COMPUTACENTER (UK) LTD,3780019982,"33,138.43",Computer Maintenance
Department of Health,HSCIC,09/02/2015,Legal / Professional Fees,Commercial Delivery,IN PRACTICE SYSTEMS LTD,414485,"33,004.10",Legal / Professional Fees
Department of Health,HSCIC,18/07/2014,IT Additions,Capital Expenditure,CSA (WAVERLEY ) LTD,IN659511,"32,746.19",IT Additions
Department of Health,HSCIC,25/06/2014,IT Additions,Capital Expenditure,COMPUTACENTER UK LTD,3880176297,"32,592.62",IT Additions
Department of Health,HSCIC,31/03/2014,Computer Maintenance,IT Services,PROBRAND LTD,OPI467661,"32,427.89",Computer Maintenance
Department of Health,HSCIC,31/03/2014,Contract - Other External,Workforce & facilities,ASCKEY DATA SERVICES LTD,4602,"32,414.10",Contract - Other External
Department of Health,HSCIC,14/01/2015,Computer Software/License,Primary Care Domain,CEGEDIM STRATEGIC DATA MEDICAL RESEARCH LTD,PP400583,"32,400.00",Computer Software/License
Department of Health,HSCIC,19/12/2014,Computer Software Additions,Capital Expenditure,INFORMED SOLUTIONS LTD,8866,"32,400.00",Computer Software Additions
Department of Health,HSCIC,11/06/2014,Software Licences,Capital Expenditure,TRUSTMARQUE SOLUTIONS LTD,2213495,"32,218.80",Software Licences
Department of Health,HSCIC,29/04/2014,IT Additions,Capital Expenditure,PROBRAND LTD,OPI470509,"32,125.80",IT Additions
Department of Health,HSCIC,01/02/2015,Mobile Phones,IT Services,VODAFONE CORPORATE LTD,UK100220157257,"31,796.86",Mobile Phones
Department of Health,HSCIC,26/02/2015,Travel,Various,CAPITA TRAVEL & EVENTS,PPIN4009430,"31,743.00",Travel
Department of Health,HSCIC,30/07/2014,Computer Maintenance,Comms infrastructure,BRAMBLE.CC LTD,4121,"31,610.40",Computer Maintenance
Department of Health,HSCIC,09/07/2014,Legal / Professional Fees,Southern Review Commercial ,ERNST & YOUNG LLP,GB10100069905,"31,565.58",Legal / Professional Fees
Department of Health,HSCIC,12/01/2015,Workpackage,Infrastructure,INFORMATION RISK MANAGEMENT,PPSIN004283284285,"31,310.28",Workpackage
Department of Health,HSCIC,02/02/2015,Phone Rental and Calls,Estates & Facilities,BT PLC,VP26983270M0990,"31,287.82",Phone Rental and Calls
Department of Health,HSCIC,31/07/2014,Contract - Other External,IT Services,SOFTCAT LTD,CA0000000773,"31,250.74",Contract - Other External
Department of Health,HSCIC,20/08/2014,Legal / Professional Fees,eReferral Service,REDROCK CONSULTING LTD,4424,"31,050.00",Legal / Professional Fees
Department of Health,HSCIC,18/03/2014,Secondment,Board and Executive Office costs,DEPARTMENT OF HEALTH,210685,"30,959.83",Secondment
Department of Health,HSCIC,05/11/2014,IT Additions,Capital Expenditure,COMPUTACENTER UK LTD,3880316455,"30,735.24",IT Additions
Department of Health,HSCIC,26/02/2015,Travel,Various,CAPITA TRAVEL & EVENTS,PPIN3988150,"30,623.10",Travel
Department of Health,HSCIC,24/04/2014,Software Licences,Capital Expenditure,SPECIALIST COMPUTER CENTRES PLC,OPL840654,"30,355.84",Software Licences
Department of Health,HSCIC,08/09/2014,Computer Software/License,Hosting & Infrastructure,INSIGHT DIRECT (UK) LTD,2005027,"30,312.36",Computer Software/License
Department of Health,HSCIC,01/09/2014,Workpackage,Population Health,PUBLIC HEALTH ENGLAND,6095806,"30,158.40",Workpackage
Department of Health,HSCIC,17/03/2014,Workpackage,Clinical Safety,DET NORSKE VERITAS LTD,ZNOGB25251594,"30,132.37",Workpackage
Department of Health,HSCIC,12/01/2015,Secondment,Media & corporate relations,DEPARTMENT OF HEALTH,212100,"30,074.94",Secondment
Department of Health,HSCIC,29/07/2014,Assets Under Construction,Capital Expenditure,ATOS IT SERVICES UK LTD,5584163869,"30,000.00",Assets Under Construction
Department of Health,HSCIC,27/11/2014,Computer Software/License,Prescribing & primary care services,IMS HEALTH LTD,4041030332,"30,000.00",Computer Software/License
Department of Health,HSCIC,31/12/2014,External Managed Service,Digital Assessment Service,INFERMED LTD,23214,"30,000.00",External Managed Service
Department of Health,HSCIC,08/04/2014,Course Fees,Summary Care Record,OXFORD SAID BUSINESS SCHOOL,36620,"30,000.00",Course Fees
Department of Health,HSCIC,11/06/2014,Course Fees,LSP Directorate Central Services,OXFORD SAID BUSINESS SCHOOL,36942,"30,000.00",Course Fees
Department of Health,HSCIC,20/06/2014,Course Fees,CSC LSP Programme,OXFORD SAID BUSINESS SCHOOL,36989,"30,000.00",Course Fees
Department of Health,HSCIC,17/11/2014,Course Fees,eReferral Service,OXFORD SAID BUSINESS SCHOOL,37999,"30,000.00",Course Fees
Department of Health,HSCIC,17/11/2014,Course Fees,BT LSP Programme,OXFORD SAID BUSINESS SCHOOL,38000,"30,000.00",Course Fees
Department of Health,HSCIC,26/11/2014,Course Fees,Care.Data,OXFORD SAID BUSINESS SCHOOL,38018,"30,000.00",Course Fees
Department of Health,HSCIC,26/06/2014,Legal / Professional Fees,Transparency & Information Assurance Programme,PRICEWATERHOUSECOOPERS LLP,1354209153,"30,000.00",Legal / Professional Fees
Department of Health,HSCIC,06/11/2014,Legal / Professional Fees,Clinical Audit,UNIVERSITY OF NOTTINGHAM,7700321,"29,710.80",Legal / Professional Fees
Department of Health,HSCIC,30/05/2014,Computer Maintenance,IT Services,PROBRAND LTD,OPI474329,"29,598.12",Computer Maintenance
Department of Health,HSCIC,29/09/2014,IT Additions,Capital Expenditure,SOFTCAT LTD,INV01017792,"29,496.10",IT Additions
Department of Health,HSCIC,01/08/2014,Data Lines,IT Services,VODAFONE CORPORATE LTD,UK100820147199,"29,492.08",Data Lines
Department of Health,HSCIC,20/03/2015,Rent & Rates,Estates & Facilities,DEPARTMENT OF HEALTH,212645,"29,363.86",Rent & Rates
Department of Health,HSCIC,27/10/2014,Assets Under Construction,Capital Expenditure,ATOS IT SERVICES UK LTD,5584169727,"29,301.60",Assets Under Construction
Department of Health,HSCIC,30/11/2014,Course Fees,Organisation development & training,CAPITA BUSINESS SERVICES LTD,X54949,"29,287.75",Course Fees
Department of Health,HSCIC,12/01/2015,Secondment,Information Assurance Special Projects,DEPARTMENT OF HEALTH,212086,"29,227.92",Secondment
Department of Health,HSCIC,10/03/2015,Secondment,Information Assurance Special Projects,DEPARTMENT OF HEALTH,212489,"29,227.92",Secondment
Department of Health,HSCIC,31/10/2014,External Managed Service,Digital Assessment Service,INFERMED LTD,18914,"29,138.40",External Managed Service
Department of Health,HSCIC,31/05/2014,Public Relations Expenses,Media & Corporate Relations,NLA MEDIA ACCESS LTD,Q344487,"29,137.56",Public Relations Expenses
Department of Health,HSCIC,27/03/2014,Computer Software/License,Casemix Programme,3M HEALTH CARE LTD,940896,"29,099.40",Computer Software/License
Department of Health,HSCIC,20/03/2015,Rent & Rates,Estates & Facilities,DEPARTMENT OF HEALTH,212646,"28,896.99",Rent & Rates
Department of Health,HSCIC,22/12/2014,Workpackage,Workforce & facilities,HM REVENUE & CUSTOMS,1.8E+13,"28,800.00",Workpackage
Department of Health,HSCIC,08/07/2014,Computer Software/License,Service Management,SOFTCAT LTD,INV00974734,"28,800.00",Computer Software/License
Department of Health,HSCIC,11/08/2014,Legal / Professional Fees,Employment Policy & Practice,DAC BEACHCROFT LLP,2171246,"28,586.10",Legal / Professional Fees
Department of Health,HSCIC,08/09/2014,Rent,Estates & Facilities,BRITISH MEDICAL ASSOCIATION,I0062525,"28,500.76",Rent
Department of Health,HSCIC,12/02/2015,Audit Fees: Statutory,Finance,NATIONAL AUDIT OFFICE,5143,"28,500.00",Audit Fees: Statutory
Department of Health,HSCIC,09/03/2015,Rent,Estates & Facilities,PETIT PAPILLON MANAGEMENT LTD,10372,"28,457.00",Rent
Department of Health,HSCIC,18/06/2014,Computer Maintenance,Telephony Managed Service,DIMENSION DATA COMMUNICATIONS UK LTD,90438339,"28,341.92",Computer Maintenance
Department of Health,HSCIC,30/10/2014,Course Fees,Organisation development & training,CAPITA BUSINESS SERVICES LTD,X51455,"28,252.49",Course Fees
Department of Health,HSCIC,19/12/2014,Fixtures & Fittings Additions,Capital Expenditure,SENATOR INTERNATIONAL LTD,S01212495,"28,249.60",Fixtures & Fittings Additions
Department of Health,HSCIC,25/11/2014,Fixtures & Fittings Additions,Capital Expenditure,WAINGAP CONTRACTS LTD,503,"28,151.40",Fixtures & Fittings Additions
Department of Health,HSCIC,31/05/2014,Rent,Estates & Facilities,EAGLE ONE LTD,10540,"28,132.50",Rent
Department of Health,HSCIC,30/08/2014,Rent,Estates & Facilities,EAGLE ONE LTD,10564,"28,132.50",Rent
Department of Health,HSCIC,28/11/2014,Rent,Estates & Facilities,EAGLE ONE LTD,10591,"28,132.50",Rent
Department of Health,HSCIC,23/05/2014,Rent,Estates & Facilities,BRITISH MEDICAL ASSOCIATION,I0060978,"28,122.40",Rent
Department of Health,HSCIC,24/11/2014,Rent,Estates & Facilities,BRITISH MEDICAL ASSOCIATION (BMA),I0064042,"28,118.32",Rent
Department of Health,HSCIC,30/10/2014,Fixtures & Fittings Additions,Capital Expenditure,HEELEY MAINTENANCE LTD,2396,"28,022.40",Fixtures & Fittings Additions
Department of Health,HSCIC,08/04/2014,Computer software Development,Clinical indicators,ATCHAI LTD,I000070,"28,020.00",Computer Software Development
Department of Health,HSCIC,29/04/2014,Computer Software Additions,Capital Expenditure,SOFTWARE BOX LTD,INV69961,"27,819.26",Computer Software Additions
Department of Health,HSCIC,28/10/2014,External Data Contracts,ODS Team,OFFICE FOR NATIONAL STATISTICS,1029294,"27,816.00",External Data Contracts
Department of Health,HSCIC,02/12/2014,Conferences and Seminars,Internal Comms,CALDER CONFERENCE LTD,135078,"27,779.21",Conferences and Seminars
Department of Health,HSCIC,14/05/2014,Computer Software/License,Solution Assurance,SOFTCAT LTD,INV00945531,"27,637.06",Computer Software/License
Department of Health,HSCIC,29/04/2014,Computer Maintenance,IT Services,RICOH UK LTD,87855038,"27,483.92",Computer Maintenance
Department of Health,HSCIC,25/02/2015,Rent,Estates & Facilities,BRITISH MEDICAL ASSOCIATION (BMA),I0066708,"27,400.00",Rent
Department of Health,HSCIC,18/03/2014,Secondment,Media & Corporate Relations,DEPARTMENT OF HEALTH,210680,"27,395.28",Secondment
Department of Health,HSCIC,31/03/2014,Computer Maintenance,IT Operations,COMPUTACENTER UK LTD,3880088648,"27,316.20",Computer Maintenance
Department of Health,HSCIC,29/07/2014,IT Additions,Capital Expenditure,PROBRAND LTD,OPI480724,"27,210.00",IT Additions
Department of Health,HSCIC,28/10/2014,Computer Software/License,IT Services,SOFTCAT LTD,INV01034288,"26,846.40",Computer Software/License
Department of Health,HSCIC,08/01/2015,Legal / Professional Fees,Clinical Audit,LANCASHIRE TEACHING HOSPITALS NHS FOUNDATION TRUST,15254120,"26,578.00",Legal / Professional Fees
Department of Health,HSCIC,19/12/2014,Computer Software Additions,Capital Expenditure,INFORMED SOLUTIONS LTD,8878,"26,400.00",Computer Software Additions
Department of Health,HSCIC,27/06/2014,Legal / Professional Fees,Southern Review Commercial ,ERNST & YOUNG LLP,GB10100069546,"26,370.00",Legal / Professional Fees
Department of Health,HSCIC,31/12/2014,Removal Expenses,Estates & Facilities,HARROW GREEN LTD,NL010022,"26,269.11",Removal Expenses
Department of Health,HSCIC,22/10/2014,Mobile Phones,Estates & Facilities,VODAFONE CORPORATE LTD,73715249,"26,243.22",Mobile Phones
Department of Health,HSCIC,26/08/2014,Contract - Other External,IT Services,RICOH UK LTD,87982295,"25,993.32",Contract - Other External
Department of Health,HSCIC,30/09/2014,Contract - Other External,IT Services,RICOH UK LTD,88015247,"25,993.32",Contract - Other External
Department of Health,HSCIC,20/08/2014,Mobile Phones,Estates & Facilities,VODAFONE CORPORATE LTD,73034528,"25,949.12",Mobile Phones
Department of Health,HSCIC,23/10/2014,Legal / Professional Fees,Corporate,BOND DICKINSON LLP,PPFID2297458,"25,923.00",Legal / Professional Fees
Department of Health,HSCIC,21/06/2014,Mobile Phones,Estates & Facilities,VODAFONE CORPORATE LTD,72344499,"25,734.02",Mobile Phones
Department of Health,HSCIC,26/11/2014,Fixtures & Fittings Additions,Capital Expenditure,BROADSTOCK OFFICE FURNITURE LTD,OPI098149,"25,628.40",Fixtures & Fittings Additions
Department of Health,HSCIC,28/11/2014,Computer Software/License,Infrastructure,CONVERGENT NETWORK SOLUTIONS LTD,80578062,"25,360.00",Computer Software/License
Department of Health,HSCIC,22/07/2014,Mobile Phones,Estates & Facilities,VODAFONE CORPORATE LTD,72659010,"25,354.14",Mobile Phones
Department of Health,HSCIC,30/06/2014,Software Licences,Capital Expenditure,SOFTCAT LTD,INV00969489,"25,312.62",Software Licences
Department of Health,HSCIC,03/07/2014,Workpackage,Digital Assessment Service,NILE HQ LTD,INV110399,"25,263.60",Workpackage
Department of Health,HSCIC,22/04/2014,IT Additions,Capital Expenditure,INSIGHT DIRECT (UK) LTD,1808422,"25,259.05",IT Additions
Department of Health,HSCIC,10/04/2014,Legal / Professional Fees,Human Resources,DAC BEACHCROFT LLP,2166142,"25,085.36",Legal / Professional Fees
Department of Health,HSCIC,19/12/2014,Workpackage,HSCN,IDENTITY E2E,100140DRCORR,"25,012.49",Workpackage
Department of Health,HSCIC,18/03/2014,Health Surveys,Population Health,NATIONAL CENTRE FOR SOCIAL RESEARCH,51121,"25,000.00",Health Surveys
Department of Health,HSCIC,14/05/2014,Health Surveys,Population Health,NATIONAL CENTRE FOR SOCIAL RESEARCH,51259,"25,000.00",Health Surveys
Department of Health,HSCIC,22/07/2014,Health Surveys,Population Health,NATIONAL CENTRE FOR SOCIAL RESEARCH,51403,"25,000.00",Health Surveys
Department of Health,HSCIC,26/08/2014,Health Surveys,Population Health,NATIONAL CENTRE FOR SOCIAL RESEARCH,51452,"25,000.00",Health Surveys
Department of Health,HSCIC,16/06/2014,Course Fees,GPSOC Replacement,OXFORD SAID BUSINESS SCHOOL,36958,"25,000.00",Course Fees
